fUSD/lending_fUSD_20260121
["ID","MTS","AMOUNT","RATE_DAILY","PERIOD"]
[402897332,1768957842890,-491.165,0.000238,5]
[402897333,1768957842900,-1000.0,0.00023836,2]
[402897334,1768957842909,-150.0000016,0.00024003,32]
[402897335,1768957842919,-13666.095101,0.00024012,2]
[402897336,1768957842928,-181.25,0.00024026,2]
[402897337,1768957842938,-1000.0,0.0002411,2]
[402897338,1768957842947,-168.0,0.00024144,120]
[402897339,1768957842956,-399.47,0.00024225,30]
[402897340,1768957842966,-2567.0,0.00024261,2]
[402897341,1768957842976,-617.40005154,0.00024262,2]
[402897342,1768957842986,-1000.0,0.00024384,2]
[402897345,1768957842995,-690.06892861,0.000246,120]
[402897347,1768957843008,-1000.0,0.000246,2]
[402897349,1768957843018,-1000.0,0.00024658,2]
[402897351,1768957843028,-1999.0,0.00024658,2]
[402897353,1768957843038,-246.29547505,0.00024786,2]
[402897354,1768957843047,-640.24385345,0.0002481,2]
[402897355,1768957843058,-1000.0,0.00024887,2]
[402897356,1768957843067,-201.0,0.00024905,2]
[402897357,1768957843076,-1000.0,0.00024932,2]
[402897358,1768957843086,-791.12464539,0.00024958,2]
[402897359,1768957843096,-338.09,0.00024986,120]
[402897360,1768957843105,-618.60086324,0.00025,2]
[402897361,1768957843114,-1000.0,0.00025205,2]
[402897362,1768957843124,-4192.0,0.00025319,2]
[402897363,1768957843133,-685.8999846,0.00025358,2]
[402897364,1768957843142,-162.5,0.00025442,2]
[402897365,1768957843151,-150.0000016,0.00025459,36]
[402897366,1768957843161,-2352.0,0.00025474,2]
[402897367,1768957843170,-1000.0,0.00025479,2]
[402897368,1768957843180,-1000.0,0.00025505,2]
[402897369,1768957843189,-1000.0,0.00025547,2]
[402897370,1768957843198,-1660.0,0.000256,2]
[402897371,1768957843208,-1375.0,0.00025619,2]
[402897372,1768957843218,-506.0,0.0002564,7]
[402897373,1768957843228,-1000.0,0.00025734,2]
[402897374,1768957843239,-1000.0,0.00025753,2]
[402897375,1768957843248,-875.88,0.0002577,2]
[402897376,1768957843258,-2351.0,0.00025794,7]
[402897377,1768957843267,-2351.0,0.0002581,2]
[402897379,1768957843277,-1000.0,0.00025836,2]
[402897381,1768957843286,-1375.0,0.00025932,7]
[402897384,1768957843296,-1204.0,0.00026027,2]
[402897386,1768957843304,-1737.0,0.00026027,2]
[402897388,1768957843314,-4192.0,0.00026047,2]
[402897390,1768957843323,-1000.0,0.00026075,2]
[402897392,1768957843333,-1000.0,0.00026187,2]
[402897394,1768957843342,-3204.39278617,0.00026205,2]
[402897396,1768957843351,-1000.0,0.00026219,2]
[402897398,1768957843360,-1000.0,0.00026262,2]
[402897400,1768957843369,-1000.0,0.00026285,2]
[402897403,1768957843382,-1000.0,0.00026292,2]
[402897405,1768957843391,-1204.0,0.00026404,2]
[402897407,1768957843400,-1000.0,0.00026502,2]
[402897409,1768957843409,-1000.0,0.00026558,2]
[402897410,1768957843419,-1000.0,0.00026572,2]
[402897411,1768957843428,-196.23149261,0.00026581,2]
[402897412,1768957843437,-500.0,0.000266,9]
[402897413,1768957843446,-150.0,0.00026603,2]
[402897414,1768957843456,-1000.0,0.0002668,2]
[402897415,1768957843466,-150.0,0.00026692,2]
[402897416,1768957843475,-1100.0,0.000267,9]
[402897417,1768957843484,-1026.88613803,0.00026705,2]
[402897418,1768957843494,-208.87535461,0.00026749,2]
[402897419,1768957843503,-150.0,0.0002677,2]
[402897420,1768957843512,-189.0,0.00026787,2]
[402897421,1768957843522,-1000.0,0.0002679,2]
[402897422,1768957843531,-1700.0,0.000268,9]
[402897423,1768957843541,-300.0,0.00026822,2]
[402897424,1768957843550,-4192.0,0.00026826,7]
[402897425,1768957843559,-150.0,0.00026832,2]
[402897426,1768957843568,-1204.0,0.00026844,7]
[402897427,1768957843577,-1000.0,0.00026864,2]
[402897428,1768957843587,-1000.0,0.00026868,2]
[402897429,1768957843596,-1000.0,0.00026877,2]
[402897430,1768957843605,-189.0,0.00026892,2]
[402897431,1768957843614,-2300.0,0.000269,9]
[402897432,1768957843624,-791.12464539,0.00026906,2]
[402897433,1768957843633,-150.0000016,0.00026915,41]
[402897434,1768957843642,-300.0,0.00026925,2]
[402897435,1768957843651,-189.0,0.00026925,2]
[402897436,1768957843661,-150.0,0.00026932,2]
[402897437,1768957843673,-500.00000017,0.00026996,2]
[402897438,1768957843683,-200.0,0.00027,120]
[402897439,1768957843691,-2567.0,0.00027,2]
[402897440,1768957843700,-1000.0,0.00027018,2]
[402897441,1768957843710,-189.0,0.0002704,2]
[402897442,1768957843719,-1000.0,0.00027042,2]
[402897443,1768957843728,-241.67,0.00027055,2]
[402897444,1768957843737,-150.0,0.00027074,2]
[402897445,1768957843748,-200.0,0.00027087,2]
[402897446,1768957843757,-189.0,0.00027091,7]
[402897447,1768957843766,-961.20559,0.0002712,2]
[402897448,1768957843777,-961.20559,0.0002712,2]
[402897449,1768957843786,-961.20558,0.0002712,2]
[402897450,1768957843795,-189.0,0.00027133,2]
[402897451,1768957843803,-189.0,0.00027138,2]
[402897452,1768957843812,-150.0,0.00027143,2]
[402897453,1768957843821,-201.0,0.00027164,2]
[402897454,1768957843830,-200.0,0.0002717,2]
[402897455,1768957843839,-1000.0,0.00027189,2]
[402897456,1768957843848,-300.17311036,0.00027192,120]
[402897457,1768957843857,-162.95411943,0.00027192,120]
[402897458,1768957843866,-208.79179925,0.00027219,2]
[402897459,1768957843876,-294.9109248,0.00027297,2]
[402897460,1768957843884,-829.11304192,0.000273,7]
[402897461,1768957843893,-2022.68423242,0.00027396,2]
[402897462,1768957843902,-300.0,0.00027396,10]
[402897463,1768957843912,-151.0,0.00027397,3]
[402897464,1768957843921,-151.0,0.00027397,3]
[402897465,1768957843930,-151.0,0.00027397,3]
[402897466,1768957843939,-151.0,0.00027397,3]
[402897467,1768957843948,-151.0,0.00027397,3]
[402897468,1768957843957,-151.0,0.00027397,3]
[402897469,1768957843967,-151.0,0.00027397,3]
[402897470,1768957843977,-151.0,0.00027397,3]
[402897471,1768957843986,-151.0,0.00027397,3]
[402897472,1768957843995,-151.0,0.00027397,3]
[402897473,1768957844005,-151.0,0.00027397,3]
[402897474,1768957844014,-1000.0,0.00027397,2]
[402897475,1768957844023,-1000.0,0.00027397,2]
[402897476,1768957844033,-1000.0,0.00027397,2]
[402897477,1768957844042,-1000.0,0.00027397,2]
[402897478,1768957844052,-1000.0,0.00027397,2]
[402897479,1768957844061,-151.0,0.00027397,3]
[402897480,1768957844071,-151.0,0.00027397,3]
[402897481,1768957844082,-151.0,0.00027397,3]
[402897482,1768957844091,-151.0,0.00027397,3]
[402897483,1768957844100,-151.0,0.00027397,3]
[402897484,1768957844110,-151.0,0.00027397,3]
[402897485,1768957844119,-164.789442,0.00027397,120]
[402897487,1768957844128,-151.0,0.00027397,3]
[402897488,1768957844138,-151.0,0.00027397,3]
[402897489,1768957844147,-151.0,0.00027397,3]
[402897490,1768957844157,-151.0,0.00027397,3]
[402897491,1768957844166,-151.0,0.00027397,3]
[402897492,1768957844176,-151.0,0.00027397,3]
[402897493,1768957844186,-151.0,0.00027397,3]
[402897494,1768957844195,-151.0,0.00027397,3]
[402897495,1768957844205,-151.0,0.00027397,3]
[402897496,1768957844215,-173.23449407,0.00027397,120]
[402897497,1768957844224,-502.66253523,0.00027397,120]
[402897498,1768957844234,-502.30560984,0.00027397,120]
[402897499,1768957844243,-518.53587801,0.00027397,120]
[402897500,1768957844252,-514.15531808,0.00027397,120]
[402897501,1768957844261,-560.41931141,0.00027397,120]
[402897502,1768957844271,-507.17171132,0.00027397,120]
[402897503,1768957844281,-500.0,0.00027397,120]
[402897504,1768957844291,-500.0,0.00027397,120]
[402897505,1768957844299,-500.0,0.00027397,120]
[402897506,1768957844310,-500.0,0.00027397,120]
[402897507,1768957844319,-500.0,0.00027397,120]
[402897508,1768957844329,-529.48040954,0.00027397,120]
[402897509,1768957844338,-500.0,0.00027397,120]
[402897510,1768957844348,-491.72766216,0.00027397,120]
[402897511,1768957844358,-535.84265908,0.00027397,120]
[402897512,1768957844368,-500.0,0.00027397,120]
[402897513,1768957844378,-500.0,0.00027397,120]
[402897514,1768957844387,-522.63601006,0.00027397,120]
[402897515,1768957844397,-500.0,0.00027397,120]
[402897516,1768957844408,-500.0,0.00027397,120]
[402897517,1768957844419,-500.0,0.00027397,120]
[402897518,1768957844428,-500.0,0.00027397,120]
[402897519,1768957844438,-513.9539256,0.00027397,120]
[402897520,1768957844449,-505.10397816,0.00027397,120]
[402897521,1768957844459,-500.0,0.00027397,120]
[402897522,1768957844471,-500.0,0.00027397,120]
[402897523,1768957844481,-500.0,0.00027397,120]
[402897524,1768957844491,-500.0,0.00027397,120]
[402897525,1768957844501,-159.55447946,0.00027397,120]
[402897526,1768957844511,-540.36439835,0.00027397,120]
[402897527,1768957844521,-500.0,0.00027397,120]
[402897528,1768957844538,-549.05086711,0.00027397,120]
[402897529,1768957844551,-500.0,0.00027397,120]
[402897530,1768957844561,-500.0,0.00027397,120]
[402897531,1768957844571,-500.0,0.00027397,120]
[402897532,1768957844581,-500.0,0.00027397,120]
[402897533,1768957844591,-500.0,0.00027397,120]
[402897534,1768957844600,-500.0,0.00027397,120]
[402897535,1768957844611,-233.44798845,0.00027397,120]
[402897536,1768957844620,-500.0,0.00027397,120]
[402897537,1768957844631,-500.0,0.00027397,120]
[402897538,1768957844919,-500.0,0.00027397,120]
[402897539,1768957844929,-500.0,0.00027397,120]
[402897540,1768957844939,-500.0,0.00027397,120]
[402897541,1768957844948,-500.0,0.00027397,120]
[402897542,1768957844958,-500.0,0.00027397,120]
[402897543,1768957844968,-500.0,0.00027397,120]
[402897544,1768957844977,-500.0,0.00027397,120]
[402897545,1768957844987,-500.0,0.00027397,120]
[402897546,1768957844997,-628.85412755,0.00027397,120]
[402897547,1768957845010,-500.0,0.00027397,120]
[402897548,1768957845021,-500.0,0.00027397,120]
[402897549,1768957845032,-500.0,0.00027397,120]
[402897550,1768957845041,-500.0,0.00027397,120]
[402897551,1768957845051,-500.0,0.00027397,120]
[402897552,1768957845062,-500.0,0.00027397,120]
[402897553,1768957845071,-500.0,0.00027397,120]
[402897554,1768957845081,-502.59582169,0.00027397,120]
[402897555,1768957845090,-472.1610112,0.00027397,120]
[402897556,1768957845100,-416.32774106,0.00027397,120]
[402897557,1768957845110,-502.70174937,0.00027397,120]
[402897558,1768957845121,-514.09778816,0.00027397,120]
[402897559,1768957845130,-500.0,0.00027397,120]
[402897560,1768957845140,-500.0,0.00027397,120]
[402897561,1768957845150,-500.0,0.00027397,120]
[402897562,1768957845160,-500.0,0.00027397,120]
[402897563,1768957845170,-500.0,0.00027397,120]
[402897564,1768957845180,-503.63778708,0.00027397,120]
[402897565,1768957845189,-527.0527571,0.00027397,120]
[402897566,1768957845199,-500.0,0.00027397,120]
[402897567,1768957845208,-500.0,0.00027397,120]
[402897568,1768957845217,-500.0,0.00027397,120]
[402897569,1768957845227,-572.61916979,0.00027397,120]
[402897570,1768957845237,-500.0,0.00027397,120]
[402897571,1768957845247,-157.990146,0.00027397,3]
[402897572,1768957845257,-505.80469929,0.00027397,120]
[402897573,1768957845266,-500.0,0.00027397,120]
[402897574,1768957845276,-470.00106111,0.00027397,120]
[402897575,1768957845288,-503.88010625,0.00027397,120]
[402897576,1768957845298,-500.0,0.00027397,120]
[402897577,1768957845310,-516.79253204,0.00027397,120]
[402897578,1768957845321,-500.0,0.00027397,120]
[402897579,1768957845332,-424.35685978,0.00027397,120]
[402897580,1768957845342,-501.52657078,0.00027397,120]
[402897581,1768957845351,-160.13978686,0.00027397,120]
[402897582,1768957845361,-500.0,0.00027397,120]
[402897583,1768957845371,-500.0,0.00027397,120]
[402897584,1768957845381,-500.0,0.00027397,120]
[402897585,1768957845390,-508.34191028,0.00027397,120]
[402897586,1768957845399,-500.0,0.00027397,120]
[402897587,1768957845408,-500.0,0.00027397,120]
[402897588,1768957845418,-500.0,0.00027397,120]
[402897589,1768957845427,-507.31904156,0.00027397,120]
[402897590,1768957845437,-306.0693212,0.00027397,120]
[402897591,1768957845447,-500.0,0.00027397,120]
[402897592,1768957845457,-500.0,0.00027397,120]
[402897593,1768957845468,-508.31336609,0.00027397,120]
[402897594,1768957845477,-500.0,0.00027397,120]
[402897595,1768957845486,-500.0,0.00027397,120]
[402897596,1768957845495,-500.0,0.00027397,120]
[402897597,1768957845505,-500.0,0.00027397,120]
[402897598,1768957845514,-500.0,0.00027397,120]
[402897599,1768957845524,-500.0,0.00027397,120]
[402897600,1768957845533,-500.0,0.00027397,120]
[402897601,1768957845543,-500.0,0.00027397,120]
[402897602,1768957845552,-500.0,0.00027397,120]
[402897603,1768957845561,-500.0,0.00027397,120]
[402897604,1768957845571,-500.0,0.00027397,120]
[402897605,1768957845580,-500.0,0.00027397,120]
[402897606,1768957845590,-500.0,0.00027397,120]
[402897607,1768957845599,-500.0,0.00027397,120]
[402897608,1768957845609,-500.0,0.00027397,120]
[402897609,1768957845618,-500.0,0.00027397,120]
[402897610,1768957845628,-500.0,0.00027397,120]
[402897611,1768957845638,-500.0,0.00027397,120]
[402897612,1768957845647,-500.0,0.00027397,120]
[402897613,1768957845658,-500.0,0.00027397,120]
[402897614,1768957845671,-500.0,0.00027397,120]
[402897615,1768957845681,-500.0,0.00027397,120]
[402897616,1768957845690,-176.32325086,0.00027397,120]
[402897617,1768957845700,-500.0,0.00027397,120]
[402897618,1768957845711,-500.0,0.00027397,120]
[402897619,1768957845722,-644.92979786,0.00027397,120]
[402897620,1768957845732,-500.0,0.00027397,120]
[402897621,1768957845741,-500.0,0.00027397,120]
[402897622,1768957845750,-500.0,0.00027397,120]
[402897623,1768957845760,-500.0,0.00027397,120]
[402897624,1768957845770,-157.97239108,0.00027397,120]
[402897625,1768957845779,-500.0,0.00027397,120]
[402897626,1768957845788,-500.0,0.00027397,120]
[402897627,1768957845798,-500.0,0.00027397,120]
[402897628,1768957845808,-500.0,0.00027397,120]
[402897629,1768957845817,-500.0,0.00027397,120]
[402897630,1768957845827,-500.0,0.00027397,120]
[402897631,1768957845836,-500.0,0.00027397,120]
[402897632,1768957845846,-500.0,0.00027397,120]
[402897633,1768957845855,-500.0,0.00027397,120]
[402897634,1768957845864,-500.0,0.00027397,120]
[402897635,1768957845874,-500.0,0.00027397,120]
[402897636,1768957845882,-500.0,0.00027397,120]
[402897637,1768957845891,-500.0,0.00027397,120]
[402897638,1768957845901,-543.81059043,0.00027397,120]
[402897639,1768957845910,-500.0,0.00027397,120]
[402897640,1768957845919,-500.0,0.00027397,120]
[402897641,1768957845928,-500.0,0.00027397,120]
[402897642,1768957845937,-500.0,0.00027397,120]
[402897643,1768957845947,-500.0,0.00027397,120]
[402897644,1768957845956,-500.0,0.00027397,120]
[402897645,1768957845968,-500.0,0.00027397,120]
[402897646,1768957845978,-500.0,0.00027397,120]
[402897647,1768957845988,-586.69474779,0.00027397,120]
[402897648,1768957845998,-500.0,0.00027397,120]
[402897649,1768957846008,-500.0,0.00027397,120]
[402897650,1768957846019,-500.0,0.00027397,120]
[402897651,1768957846030,-500.0,0.00027397,120]
[402897652,1768957846040,-500.0,0.00027397,120]
[402897653,1768957846051,-500.0,0.00027397,120]
[402897654,1768957846060,-500.0,0.00027397,120]
[402897655,1768957846070,-500.0,0.00027397,120]
[402897656,1768957846079,-421.45817203,0.00027397,120]
[402897657,1768957846216,-99.42182797,0.00027397,120]
[402897658,1768957846227,-374.57817203,0.00027397,120]
[402897661,1768957848056,-197.80445719,0.00027397,120]
[402897662,1768957848066,-1093.27,0.00027397,120]
[402897663,1768957848075,-520.88,0.00027397,120]
[402897664,1768957848084,-956.73169976,0.00027397,120]
[402897665,1768957848106,-136.53830024,0.00027397,120]
[402897666,1768957848115,-423.41343229,0.00027397,120]
[402897667,1768957848197,-97.46656771,0.00027397,120]
[402897668,1768957848207,-368.32317406,0.00027397,120]
[402897669,1768957848397,-724.94682594,0.00027397,120]
[402897670,1768957848407,-520.88,0.00027397,120]
[402897671,1768957848416,-339.02439161,0.00027397,120]
[402897672,1768957850477,-406.04445602,0.00027397,120]
[402897673,1768957850503,-348.20115237,0.00027397,120]
[402897674,1768957850512,-520.88,0.00027397,120]
[402897675,1768957850521,-1093.27,0.00027397,120]
[402897676,1768957850530,-520.88,0.00027397,120]
[402897677,1768957850539,-68.86436828,0.00027397,120]
[402897678,1768957850636,-1024.40563172,0.00027397,120]
[402897679,1768957850646,-520.88,0.00027397,120]
[402897680,1768957850655,-520.88,0.00027397,120]
[402897681,1768957850666,-43.14436828,0.00027397,120]
[402897682,1768957851076,-112.13976907,0.00027397,120]
[402897683,1768957851088,-937.98586265,0.00027397,120]
[402897684,1768957851097,-520.88,0.00027397,120]
[402897685,1768957851106,-1093.27,0.00027397,120]
[402897686,1768957851116,-520.88,0.00027397,120]
[402897687,1768957851125,-582.40590172,0.00027397,120]
[402897688,1768957851136,-510.86409828,0.00027397,120]
[402897689,1768957851145,-520.88,0.00027397,120]
[402897690,1768957851154,-1093.27,0.00027397,120]
[402897691,1768957851163,-99.45613428,0.00027397,120]
[402897692,1768958041523,193.2,0.000226,120]
[402897693,1768958136118,3012.4,0.00016415,2]
[402897695,1768958363370,-200.0,0.00017073,2]
[402897696,1768958388052,-200.0,0.00017,2]
[402897710,1768959031530,-50.0,0.00017,2]
[402897711,1768959031540,-300.0,0.00017073,2]
[402897713,1768959031549,-277.32645196,0.00017144,2]
[402897715,1768959031558,-252.13098416,0.00017144,2]
[402897734,1768959031999,-445.39537045,0.00017144,2]
[402897736,1768959032014,-34.34253986,0.00017144,2]
[402897738,1768959032024,-1291.10348103,0.00017144,2]
[402897740,1768959032033,-1931.4135918,0.00017144,2]
[402897741,1768959032042,-289.75218411,0.00017144,2]
[402897748,1768959032256,-2323.51121589,0.00017144,2]
[402897749,1768959032265,-253.87017634,0.0001735,2]
[402897750,1768959032275,-302.84171607,0.0001735,2]
[402897752,1768959032285,-600.0,0.000177,6]
[402897753,1768959032294,-150.00648261,0.000178,2]
[402897754,1768959032303,-1200.0,0.000178,6]
[402897755,1768959032312,-1800.0,0.000179,6]
[402897756,1768959032321,-3094.16694417,0.000179,2]
[402897757,1768959032330,-168.47114019,0.000179,2]
[402897758,1768959032340,-690.51181289,0.000179,2]
[402897759,1768959032351,-63.29728785,0.000179,2]
[402897760,1768959032360,-296.47782275,0.000179,2]
[402897761,1768959032369,-1927.12824991,0.000179,2]
[402897767,1768959037825,-179.79039755,0.000179,2]
[402897768,1768959037834,-1329.17118618,0.000179,2]
[402897769,1768959037843,-3094.16694414,0.00017927,2]
[402897770,1768959037851,-3094.16694414,0.00017954,2]
[402897771,1768959037861,-150.0,0.00017973,2]
[402897773,1768959037869,-150.0,0.00017973,2]
[402897775,1768959037879,-3094.16694414,0.00017982,2]
[402897776,1768959037887,-190.39473726,0.0001799,2]
[402897778,1768959037896,-190.39473726,0.0001799,2]
[402897779,1768959037905,-500.0,0.00017999,2]
[402897781,1768959037915,-500.0,0.00017999,2]
[402897783,1768959037924,-500.0,0.00017999,2]
[402897784,1768959037933,-500.0,0.00017999,2]
[402897786,1768959037946,-150.0,0.00017999,2]
[402897788,1768959037955,-242.0,0.00017999,2]
[402897789,1768959037964,-307.90091693,0.00017999,2]
[402897791,1768959037974,-2175.25280854,0.00017999,2]
[402897793,1768959037984,-493.55585066,0.00017999,2]
[402897794,1768959037993,-2239089.4741345,0.00018,2]
[402897798,1768959038006,-140408.45886317,0.00018,2]
[402897808,1768959038116,-40495.42358901,0.00018,2]
[402897810,1768959038127,-6075.94110169,0.00018,2]
[402897812,1768959038138,-3379.8,0.00018,2]
[402897813,1768959038149,-1611.89459424,0.00018,2]
[402897976,1768959040020,-3160.14335417,0.00018,2]
[402897978,1768959040031,-540.23723307,0.00018,2]
[402897980,1768959040041,-462.505,0.00018,2]
[402898096,1768959043058,-21947.78821782,0.00018,2]
[402898097,1768959043068,-25785.39795755,0.00018,2]
[402898122,1768959043370,-1344.94581109,0.00018,2]
[402898126,1768959046509,-4303.37718058,0.00018,2]
[402898128,1768959482010,172.46,0.000169,2]
[402898129,1768959482678,111.83389306,0.000157,2]
[402898130,1768959482702,60.62610694,0.000157,2]
[402898131,1768959483304,480.93,0.000162,2]
[402898132,1768959623508,293.4,0.000226,120]
[402898133,1768959638554,-151.0,0.00016976,2]
[402898134,1768959638586,-303.07673906,0.00016976,2]
[402898135,1768959638619,-302.39197553,0.00016988,2]
[402898136,1768959638651,-250.0,0.00016999,2]
[402898137,1768959638681,-300.0,0.00016999,2]
[402898138,1768959638715,-195.0,0.00016999,2]
[402898139,1768959638748,-1229.98,0.00017021,2]
[402898140,1768959638778,-432.33,0.00017073,2]
[402898141,1768959638807,-150.00152329,0.00017127,2]
[402898142,1768959638839,-195.0,0.00017325,2]
[402898143,1768959638869,-200.0,0.000175,6]
[402898144,1768959638899,-500.0,0.000176,6]
[402898145,1768959638931,-300.0,0.00017639,2]
[402898146,1768959638962,-1200.0,0.00017639,2]
[402898147,1768959638999,-501.876,0.0001764,2]
[402898148,1768959639028,-428.456,0.0001764,2]
[402898149,1768959639058,-586.30247638,0.0001764,2]
[402898150,1768959639088,-800.0,0.000177,6]
[402898151,1768959639120,-595.0,0.00017715,2]
[402898152,1768959639149,-500.0,0.00017715,2]
[402898153,1768959639180,-500.0,0.00017715,2]
[402898154,1768959639210,-595.0,0.0001777,2]
[402898155,1768959639240,-500.0,0.0001777,2]
[402898156,1768959639269,-527.7190536,0.0001777,2]
[402898157,1768959639301,-1100.0,0.000178,6]
[402898158,1768959639331,-595.0,0.00017825,2]
[402898159,1768959639360,-429.08163953,0.00017825,2]
[402898160,1768959639390,-595.0,0.00017879,2]
[402898161,1768959639418,-414.0,0.00017896,2]
[402898162,1768959639457,-500.0,0.00017897,2]
[402898163,1768959639490,-500.0,0.00017897,2]
[402898164,1768959639522,-500.0,0.00017897,2]
[402898165,1768959639553,-500.0,0.00017897,2]
[402898166,1768959639587,-500.0,0.00017897,2]
[402898167,1768959639618,-500.0,0.00017897,2]
[402898168,1768959639651,-500.0,0.00017897,2]
[402898169,1768959639684,-500.0,0.00017897,2]
[402898170,1768959639715,-415.7518764,0.00017897,2]
[402898171,1768959639749,-500.0,0.00017897,2]
[402898172,1768959639782,-500.0,0.00017897,2]
[402898173,1768959639815,-500.0,0.00017897,2]
[402898174,1768959639848,-500.0,0.00017897,2]
[402898175,1768959639880,-500.0,0.00017897,2]
[402898176,1768959639913,-483.72545994,0.00017897,2]
[402898177,1768959639946,-500.0,0.00017897,2]
[402898178,1768959639977,-500.0,0.00017897,2]
[402898179,1768959640010,-500.0,0.00017897,2]
[402898180,1768959640042,-500.0,0.00017897,2]
[402898181,1768959640074,-499.99999999,0.00017897,2]
[402898182,1768959640108,-5826.0254,0.000179,2]
[402898183,1768959640140,-1400.0,0.000179,6]
[402898184,1768959640169,-308.9838591,0.000179,2]
[402898185,1768959640199,-188.77070446,0.000179,2]
[402898186,1768959640227,-886.75095789,0.000179,2]
[402898187,1768959640256,-712.04320418,0.000179,2]
[402898188,1768959640285,-174.16551935,0.000179,2]
[402898189,1768959640313,-2180.17224187,0.000179,2]
[402898190,1768959640341,-432.33,0.00017926,2]
[402898191,1768959640370,-595.0,0.00017934,2]
[402898192,1768959640400,-150.0,0.00017973,2]
[402898193,1768959640431,-150.0,0.00017973,2]
[402898194,1768959640460,-595.0,0.00017989,2]
[402898195,1768959640489,-174.61919141,0.00017989,2]
[402898196,1768959640518,-250.0,0.00017989,2]
[402898197,1768959640549,-500.0,0.00017989,2]
[402898198,1768959640578,-250.0,0.00017989,2]
[402898199,1768959640608,-250.0,0.00017989,2]
[402898200,1768959640638,-500.0,0.00017989,2]
[402898201,1768959640668,-302.57148692,0.00017989,2]
[402898202,1768959640701,-500.0,0.00017989,2]
[402898203,1768959640731,-500.0,0.00017989,2]
[402898204,1768959640761,-500.0,0.00017989,2]
[402898205,1768959640789,-500.0,0.00017989,2]
[402898206,1768959640817,-250.0,0.00017989,2]
[402898207,1768959640846,-500.0,0.00017989,2]
[402898208,1768959640876,-500.0,0.00017989,2]
[402898209,1768959640904,-815.94934481,0.00017989,2]
[402898210,1768959640933,-250.0,0.00017989,2]
[402898211,1768959640962,-500.0,0.00017989,2]
[402898212,1768959640990,-500.0,0.00017989,2]
[402898213,1768959641019,-250.0,0.00017989,2]
[402898214,1768959641047,-500.0,0.00017989,2]
[402898215,1768959641075,-500.0,0.00017989,2]
[402898216,1768959641108,-250.0,0.00017989,2]
[402898217,1768959641136,-500.0,0.00017989,2]
[402898218,1768959641165,-500.0,0.00017989,2]
[402898219,1768959641194,-250.0,0.00017989,2]
[402898220,1768959641221,-500.0,0.00017989,2]
[402898221,1768959641902,-500.0,0.00017989,2]
[402898222,1768959641940,-250.0,0.00017989,2]
[402898223,1768959641966,-500.0,0.00017989,2]
[402898224,1768959641991,-500.0,0.00017989,2]
[402898225,1768959642016,-250.0,0.00017989,2]
[402898226,1768959642042,-500.0,0.00017989,2]
[402898227,1768959642070,-500.0,0.00017989,2]
[402898228,1768959642098,-250.0,0.00017989,2]
[402898229,1768959642124,-263.31471796,0.00017989,2]
[402898230,1768959642151,-500.0,0.00017989,2]
[402898231,1768959642179,-500.0,0.00017989,2]
[402898232,1768959642205,-500.0,0.00017989,2]
[402898233,1768959642232,-500.0,0.00017989,2]
[402898234,1768959642259,-500.0,0.00017989,2]
[402898235,1768959642285,-250.0,0.00017989,2]
[402898236,1768959642311,-500.0,0.00017989,2]